Workbook

Sheet КАЛЬКУЛЯТОР
A4: Программа кредитования: | G4: «Новостройка»
A5: Стоимость объекта недвижимости, в руб.: | G5: 7,000,000.00 ₽
A6: Первоначальный взнос, в руб.: | G6: 1,050,000.00 ₽
A7: Срок кредитования, в годах: | G7: 20
A8: Размер процентной ставки без скидки по услуге «Моя ставка», % годовых: | G8: 22.00%
A9: Ежемесячный платеж, в руб. | G9: =M27 -> 110,495.07 ₽
A10: Размер скидки по услуге «Моя ставка»: | G10: 7.50%
A11: Комиссия за услугу «Моя ставка», в руб.: | G11: =G10*(G5-G6) -> 446,250.00 ₽
A12: Комиссия оплачивается за счет кредитных средств, в руб.: | G12: Нет
A13: Срок применения скидки по услуге «Моя ставка», в годах: | G13: 4
A14: Итоговая сумма кредита, в руб.: | G14: =($G$5-$G$6)+IF($G$12=Тариф!$A$13,$G$11,0) -> 5,950,000.00 ₽
A15: Итоговый размер процентной ставки с учетом скидки, % годовых: | G15: =G8-G10 -> 14.50%
A16: Аннуитет в период действия скидки, в руб.: | G16: =E27 -> 76,159.87 ₽
A17: Аннуитет по истечении срока действия скидки, в руб.: | G17: =INDEX(E27:E386,MATCH((G13*12)+1,A27:A386,0),1) -> 107,317.53 ₽
A18: Выгода для Клиента, в руб.: | G18: =L26-D26 -> 2,258,176.25 ₽
B20: ► Поля для заполнения сотрудником АО БАНК «СНГБ»
A22: Предварительный график платежей ↓
A23: Расчеты являются предварительными и носят информационный характер для Клиента, итоговый расчет графика платежей производится при выдаче кредита в информационных системах АО БАНК «СНГБ»
A25: Период платежа | B25: Процентная ставка, % годовых | C25: Основной долг, руб. | D25: Процентная часть платежа, руб. | E25: Ежемесячный платеж, руб. | F25: Остаток ссудной задолженности, руб. | I25: Период платежа | J25: Процентная ставка, % годовых | K25: Основной долг, руб. | L25: Процентная часть платежа, руб. | M25: Ежемесячный платеж, руб. | N25: Остаток ссудной задолженности, руб.
A26: 0 | C26: =SUM(C27:C386) -> 5,950,000.00 ₽ | D26: =SUM(D27:D386) -> 18,310,639.63 ₽ | E26: =SUM(E27:E386) -> 24,260,639.63 ₽ | F26: =G14 -> 5,950,000.00 ₽ | I26: 0 | K26: =SUM(K27:K386) -> 5,950,000.00 ₽ | L26: =SUM(L27:L386) -> 20,568,815.88 ₽ | M26: 26,518,815.88 ₽ | N26: =($G$5-$G$6) -> 5,950,000.00 ₽
A27: 1 | B27: =IF(A27<=($G$13*12),$G$15,IF(A27<=($G$7*12),$G$8,"")) -> 14.50% | C27: =IFERROR(ABS(IF(A27<=($G$13*12),PPMT($B27/12,A27,$G$7*12,$F$26),PPMT($G$8/12,(A27-($G$13*12)),($G$7-$G$13)*12,INDEX($F$27:$F$386,MATCH($G$13*12,$A$27:$A$386,0),1)))),"") -> 4,264.03 ₽ | D27: =IFERROR(ABS(IF(A27<=($G$13*12),IPMT($B27/12,A27,$G$7*12,$F$26),IPMT($G$8/12,(A27-($G$13*12)),($G$7-$G$13)*12,INDEX($F$27:$F$386,MATCH($G$13*12,$A$27:$A$386,0),1)))),"") -> 71,895.83 ₽ | E27: =IF(B27="","",ABS(IF(A27<=($G$13*12),PMT($B27/12,$G$7*12,$F$26),PMT($G$8/12,($G$7-$G$13)*12,INDEX($F$27:$F$386,MATCH($G$13*12,$A$27:$A$386,0),1))))) -> 76,159.87 ₽ | F27: =IFERROR(F26-C27,"") -> 5,945,735.97 ₽ | I27: 1 | J27: =IF(I27<=($G$7*12),$G$8,"") -> 22.00% | K27: =IFERROR(ABS(PPMT($G$8/12,I27,$G$7*12,$N$26)),"") -> 1,411.73 ₽ | L27: =IFERROR(ABS(IPMT($G$8/12,I27,$G$7*12,$N$26)),"") -> 109,083.33 ₽ | M27: =IF(J27="","",ABS(PMT($G$8/12,$G$7*12,$G$14))) -> 110,495.07 ₽ | N27: =IFERROR(N26-K27,"") -> 5,948,588.27 ₽
A28: 2 | B28: 14.50% | C28: =IFERROR(ABS(IF(A28<=($G$13*12),PPMT($B28/12,A28,$G$7*12,$F$26),PPMT($G$8/12,(A28-($G$13*12)),($G$7-$G$13)*12,INDEX($F$27:$F$386,MATCH($G$13*12,$A$27:$A$386,0),1)))),"") -> 4,315.56 ₽ | D28: =IFERROR(ABS(IF(A28<=($G$13*12),IPMT($B28/12,A28,$G$7*12,$F$26),IPMT($G$8/12,(A28-($G$13*12)),($G$7-$G$13)*12,INDEX($F$27:$F$386,MATCH($G$13*12,$A$27:$A$386,0),1)))),"") -> 71,844.31 ₽ | E28: 76,159.87 ₽ | F28: =IFERROR(F27-C28,"") -> 5,941,420.41 ₽ | I28: 2 | J28: 22.00% | K28: =IFERROR(ABS(PPMT($G$8/12,I28,$G$7*12,$N$26)),"") -> 1,437.61 ₽ | L28: =IFERROR(ABS(IPMT($G$8/12,I28,$G$7*12,$N$26)),"") -> 109,057.45 ₽ | M28: 110,495.07 ₽ | N28: =IFERROR(N27-K28,"") -> 5,947,150.65 ₽
A29: 3 | B29: 14.50% | C29: 4,367.70 ₽ | D29: 71,792.16 ₽ | E29: 76,159.87 ₽ | F29: 5,937,052.70 ₽ | I29: 3 | J29: 22.00% | K29: 1,463.97 ₽ | L29: 109,031.10 ₽ | M29: 110,495.07 ₽ | N29: 5,945,686.68 ₽
A30: 4 | B30: 14.50% | C30: 4,420.48 ₽ | D30: 71,739.39 ₽ | E30: 76,159.87 ₽ | F30: 5,932,632.22 ₽ | I30: 4 | J30: 22.00% | K30: 1,490.81 ₽ | L30: 109,004.26 ₽ | M30: 110,495.07 ₽ | N30: 5,944,195.87 ₽
A31: 5 | B31: 14.50% | C31: 4,473.89 ₽ | D31: 71,685.97 ₽ | E31: 76,159.87 ₽ | F31: 5,928,158.33 ₽ | I31: 5 | J31: 22.00% | K31: 1,518.14 ₽ | L31: 108,976.92 ₽ | M31: 110,495.07 ₽ | N31: 5,942,677.73 ₽
A32: 6 | B32: 14.50% | C32: 4,527.95 ₽ | D32: 71,631.91 ₽ | E32: 76,159.87 ₽ | F32: 5,923,630.38 ₽ | I32: 6 | J32: 22.00% | K32: 1,545.97 ₽ | L32: 108,949.09 ₽ | M32: 110,495.07 ₽ | N32: 5,941,131.75 ₽
A33: 7 | B33: 14.50% | C33: 4,582.67 ₽ | D33: 71,577.20 ₽ | E33: 76,159.87 ₽ | F33: 5,919,047.71 ₽ | I33: 7 | J33: 22.00% | K33: 1,574.32 ₽ | L33: 108,920.75 ₽ | M33: 110,495.07 ₽ | N33: 5,939,557.44 ₽
A34: 8 | B34: 14.50% | C34: 4,638.04 ₽ | D34: 71,521.83 ₽ | E34: 76,159.87 ₽ | F34: 5,914,409.67 ₽ | I34: 8 | J34: 22.00% | K34: 1,603.18 ₽ | L34: 108,891.89 ₽ | M34: 110,495.07 ₽ | N34: 5,937,954.26 ₽
A35: 9 | B35: 14.50% | C35: 4,694.08 ₽ | D35: 71,465.78 ₽ | E35: 76,159.87 ₽ | F35: 5,909,715.59 ₽ | I35: 9 | J35: 22.00% | K35: 1,632.57 ₽ | L35: 108,862.49 ₽ | M35: 110,495.07 ₽ | N35: 5,936,321.69 ₽
A36: 10 | B36: 14.50% | C36: 4,750.80 ₽ | D36: 71,409.06 ₽ | E36: 76,159.87 ₽ | F36: 5,904,964.78 ₽ | I36: 10 | J36: 22.00% | K36: 1,662.50 ₽ | L36: 108,832.56 ₽ | M36: 110,495.07 ₽ | N36: 5,934,659.18 ₽
A37: 11 | B37: 14.50% | C37: 4,808.21 ₽ | D37: 71,351.66 ₽ | E37: 76,159.87 ₽ | F37: 5,900,156.57 ₽ | I37: 11 | J37: 22.00% | K37: 1,692.98 ₽ | L37: 108,802.09 ₽ | M37: 110,495.07 ₽ | N37: 5,932,966.20 ₽
A38: 12 | B38: 14.50% | C38: 4,866.31 ₽ | D38: 71,293.56 ₽ | E38: 76,159.87 ₽ | F38: 5,895,290.26 ₽ | I38: 12 | J38: 22.00% | K38: 1,724.02 ₽ | L38: 108,771.05 ₽ | M38: 110,495.07 ₽ | N38: 5,931,242.18 ₽
A39: 13 | B39: 14.50% | C39: 4,925.11 ₽ | D39: 71,234.76 ₽ | E39: 76,159.87 ₽ | F39: =IFERROR(F38-C39,"") -> 5,890,365.15 ₽ | I39: 13 | J39: 22.00% | K39: 1,755.63 ₽ | L39: 108,739.44 ₽ | M39: 110,495.07 ₽ | N39: 5,929,486.56 ₽
A40: 14 | B40: 14.50% | C40: 4,984.62 ₽ | D40: 71,175.25 ₽ | E40: 76,159.87 ₽ | F40: 5,885,380.53 ₽ | I40: 14 | J40: 22.00% | K40: 1,787.81 ₽ | L40: 108,707.25 ₽ | M40: 110,495.07 ₽ | N40: 5,927,698.75 ₽
A41: 15 | B41: 14.50% | C41: 5,044.85 ₽ | D41: 71,115.01 ₽ | E41: 76,159.87 ₽ | F41: 5,880,335.68 ₽ | I41: 15 | J41: 22.00% | K41: 1,820.59 ₽ | L41: 108,674.48 ₽ | M41: 110,495.07 ₽ | N41: 5,925,878.16 ₽
A42: 16 | B42: 14.50% | C42: 5,105.81 ₽ | D42: 71,054.06 ₽ | E42: 76,159.87 ₽ | F42: 5,875,229.87 ₽ | I42: 16 | J42: 22.00% | K42: 1,853.97 ₽ | L42: 108,641.10 ₽ | M42: 110,495.07 ₽ | N42: 5,924,024.19 ₽
A43: 17 | B43: 14.50% | C43: 5,167.51 ₽ | D43: 70,992.36 ₽ | E43: 76,159.87 ₽ | F43: 5,870,062.36 ₽ | I43: 17 | J43: 22.00% | K43: 1,887.96 ₽ | L43: 108,607.11 ₽ | M43: 110,495.07 ₽ | N43: 5,922,136.23 ₽
A44: 18 | B44: 14.50% | C44: 5,229.95 ₽ | D44: 70,929.92 ₽ | E44: 76,159.87 ₽ | F44: 5,864,832.42 ₽ | I44: 18 | J44: 22.00% | K44: 1,922.57 ₽ | L44: 108,572.50 ₽ | M44: 110,495.07 ₽ | N44: 5,920,213.66 ₽
A45: 19 | B45: 14.50% | C45: 5,293.14 ₽ | D45: 70,866.73 ₽ | E45: 76,159.87 ₽ | F45: 5,859,539.27 ₽ | I45: 19 | J45: 22.00% | K45: 1,957.82 ₽ | L45: 108,537.25 ₽ | M45: 110,495.07 ₽ | N45: 5,918,255.85 ₽
A46: 20 | B46: 14.50% | C46: 5,357.10 ₽ | D46: 70,802.77 ₽ | E46: 76,159.87 ₽ | F46: 5,854,182.17 ₽ | I46: 20 | J46: 22.00% | K46: 1,993.71 ₽ | L46: 108,501.36 ₽ | M46: 110,495.07 ₽ | N46: 5,916,262.14 ₽
A47: 21 | B47: 14.50% | C47: 5,421.83 ₽ | D47: 70,738.03 ₽ | E47: 76,159.87 ₽ | F47: 5,848,760.34 ₽ | I47: 21 | J47: 22.00% | K47: 2,030.26 ₽ | L47: 108,464.81 ₽ | M47: 110,495.07 ₽ | N47: 5,914,231.88 ₽
A48: 22 | B48: 14.50% | C48: 5,487.35 ₽ | D48: 70,672.52 ₽ | E48: 76,159.87 ₽ | F48: 5,843,272.99 ₽ | I48: 22 | J48: 22.00% | K48: 2,067.48 ₽ | L48: 108,427.58 ₽ | M48: 110,495.07 ₽ | N48: 5,912,164.40 ₽
A49: 23 | B49: 14.50% | C49: 5,553.65 ₽ | D49: 70,606.22 ₽ | E49: 76,159.87 ₽ | F49: 5,837,719.34 ₽ | I49: 23 | J49: 22.00% | K49: 2,105.39 ₽ | L49: 108,389.68 ₽ | M49: 110,495.07 ₽ | N49: 5,910,059.01 ₽
A50: 24 | B50: 14.50% | C50: 5,620.76 ₽ | D50: 70,539.11 ₽ | E50: 76,159.87 ₽ | F50: 5,832,098.58 ₽ | I50: 24 | J50: 22.00% | K50: 2,143.98 ₽ | L50: 108,351.08 ₽ | M50: 110,495.07 ₽ | N50: 5,907,915.03 ₽
A51: 25 | B51: 14.50% | C51: 5,688.68 ₽ | D51: 70,471.19 ₽ | E51: 76,159.87 ₽ | F51: 5,826,409.91 ₽ | I51: 25 | J51: 22.00% | K51: 2,183.29 ₽ | L51: 108,311.78 ₽ | M51: 110,495.07 ₽ | N51: 5,905,731.74 ₽
A52: 26 | B52: 14.50% | C52: 5,757.41 ₽ | D52: 70,402.45 ₽ | E52: 76,159.87 ₽ | F52: 5,820,652.49 ₽ | I52: 26 | J52: 22.00% | K52: 2,223.32 ₽ | L52: 108,271.75 ₽ | M52: 110,495.07 ₽ | N52: 5,903,508.42 ₽
A53: 27 | B53: 14.50% | C53: 5,826.98 ₽ | D53: 70,332.88 ₽ | E53: 76,159.87 ₽ | F53: 5,814,825.51 ₽ | I53: 27 | J53: 22.00% | K53: 2,264.08 ₽ | L53: 108,230.99 ₽ | M53: 110,495.07 ₽ | N53: 5,901,244.34 ₽
A54: 28 | B54: 14.50% | C54: 5,897.39 ₽ | D54: 70,262.47 ₽ | E54: 76,159.87 ₽ | F54: 5,808,928.12 ₽ | I54: 28 | J54: 22.00% | K54: 2,305.59 ₽ | L54: 108,189.48 ₽ | M54: 110,495.07 ₽ | N54: 5,898,938.76 ₽
A55: 29 | B55: 14.50% | C55: 5,968.65 ₽ | D55: 70,191.21 ₽ | E55: 76,159.87 ₽ | F55: 5,802,959.47 ₽ | I55: 29 | J55: 22.00% | K55: 2,347.86 ₽ | L55: 108,147.21 ₽ | M55: 110,495.07 ₽ | N55: 5,896,590.90 ₽
A56: 30 | B56: 14.50% | C56: 6,040.77 ₽ | D56: 70,119.09 ₽ | E56: 76,159.87 ₽ | F56: 5,796,918.69 ₽ | I56: 30 | J56: 22.00% | K56: 2,390.90 ₽ | L56: 108,104.17 ₽ | M56: 110,495.07 ₽ | N56: 5,894,200.00 ₽
A57: 31 | B57: 14.50% | C57: 6,113.77 ₽ | D57: 70,046.10 ₽ | E57: 76,159.87 ₽ | F57: 5,790,804.93 ₽ | I57: 31 | J57: 22.00% | K57: 2,434.73 ₽ | L57: 108,060.33 ₽ | M57: 110,495.07 ₽ | N57: 5,891,765.27 ₽
A58: 32 | B58: 14.50% | C58: 6,187.64 ₽ | D58: 69,972.23 ₽ | E58: 76,159.87 ₽ | F58: 5,784,617.29 ₽ | I58: 32 | J58: 22.00% | K58: 2,479.37 ₽ | L58: 108,015.70 ₽ | M58: 110,495.07 ₽ | N58: 5,889,285.90 ₽
A59: 33 | B59: 14.50% | C59: 6,262.41 ₽ | D59: 69,897.46 ₽ | E59: 76,159.87 ₽ | F59: 5,778,354.88 ₽ | I59: 33 | J59: 22.00% | K59: 2,524.82 ₽ | L59: 107,970.24 ₽ | M59: 110,495.07 ₽ | N59: 5,886,761.07 ₽
A60: 34 | B60: 14.50% | C60: 6,338.08 ₽ | D60: 69,821.79 ₽ | E60: 76,159.87 ₽ | F60: 5,772,016.80 ₽ | I60: 34 | J60: 22.00% | K60: 2,571.11 ₽ | L60: 107,923.95 ₽ | M60: 110,495.07 ₽ | N60: 5,884,189.96 ₽
A61: 35 | B61: 14.50% | C61: 6,414.66 ₽ | D61: 69,745.20 ₽ | E61: 76,159.87 ₽ | F61: 5,765,602.14 ₽ | I61: 35 | J61: 22.00% | K61: 2,618.25 ₽ | L61: 107,876.82 ₽ | M61: 110,495.07 ₽ | N61: 5,881,571.71 ₽
A62: 36 | B62: 14.50% | C62: 6,492.17 ₽ | D62: 69,667.69 ₽ | E62: 76,159.87 ₽ | F62: 5,759,109.96 ₽ | I62: 36 | J62: 22.00% | K62: 2,666.25 ₽ | L62: 107,828.81 ₽ | M62: 110,495.07 ₽ | N62: 5,878,905.46 ₽
A63: 37 | B63: 14.50% | C63: 6,570.62 ₽ | D63: 69,589.25 ₽ | E63: 76,159.87 ₽ | F63: 5,752,539.34 ₽ | I63: 37 | J63: 22.00% | K63: 2,715.13 ₽ | L63: 107,779.93 ₽ | M63: 110,495.07 ₽ | N63: 5,876,190.32 ₽
A64: 38 | B64: 14.50% | C64: 6,650.02 ₽ | D64: 69,509.85 ₽ | E64: 76,159.87 ₽ | F64: 5,745,889.32 ₽ | I64: 38 | J64: 22.00% | K64: 2,764.91 ₽ | L64: 107,730.16 ₽ | M64: 110,495.07 ₽ | N64: 5,873,425.41 ₽
A65: 39 | B65: 14.50% | C65: 6,730.37 ₽ | D65: 69,429.50 ₽ | E65: 76,159.87 ₽ | F65: 5,739,158.95 ₽ | I65: 39 | J65: 22.00% | K65: 2,815.60 ₽ | L65: 107,679.47 ₽ | M65: 110,495.07 ₽ | N65: 5,870,609.81 ₽
A66: 40 | B66: 14.50% | C66: 6,811.70 ₽ | D66: 69,348.17 ₽ | E66: 76,159.87 ₽ | F66: 5,732,347.25 ₽ | I66: 40 | J66: 22.00% | K66: 2,867.22 ₽ | L66: 107,627.85 ₽ | M66: 110,495.07 ₽ | N66: 5,867,742.59 ₽
A67: 41 | B67: 14.50% | C67: 6,894.00 ₽ | D67: 69,265.86 ₽ | E67: 76,159.87 ₽ | F67: 5,725,453.25 ₽ | I67: 41 | J67: 22.00% | K67: 2,919.79 ₽ | L67: 107,575.28 ₽ | M67: 110,495.07 ₽ | N67: 5,864,822.81 ₽
A68: 42 | B68: 14.50% | C68: 6,977.31 ₽ | D68: 69,182.56 ₽ | E68: 76,159.87 ₽ | F68: 5,718,475.94 ₽ | I68: 42 | J68: 22.00% | K68: 2,973.31 ₽ | L68: 107,521.75 ₽ | M68: 110,495.07 ₽ | N68: 5,861,849.49 ₽
A69: 43 | B69: 14.50% | C69: 7,061.62 ₽ | D69: 69,098.25 ₽ | E69: 76,159.87 ₽ | F69: 5,711,414.33 ₽ | I69: 43 | J69: 22.00% | K69: 3,027.83 ₽ | L69: 107,467.24 ₽ | M69: 110,495.07 ₽ | N69: 5,858,821.67 ₽
A70: 44 | B70: 14.50% | C70: 7,146.94 ₽ | D70: 69,012.92 ₽ | E70: 76,159.87 ₽ | F70: 5,704,267.38 ₽ | I70: 44 | J70: 22.00% | K70: 3,083.34 ₽ | L70: 107,411.73 ₽ | M70: 110,495.07 ₽ | N70: 5,855,738.33 ₽
A71: 45 | B71: 14.50% | C71: 7,233.30 ₽ | D71: 68,926.56 ₽ | E71: 76,159.87 ₽ | F71: 5,697,034.08 ₽ | I71: 45 | J71: 22.00% | K71: 3,139.86 ₽ | L71: 107,355.20 ₽ | M71: 110,495.07 ₽ | N71: 5,852,598.47 ₽
A72: 46 | B72: 14.50% | C72: 7,320.71 ₽ | D72: 68,839.16 ₽ | E72: 76,159.87 ₽ | F72: 5,689,713.37 ₽ | I72: 46 | J72: 22.00% | K72: 3,197.43 ₽ | L72: 107,297.64 ₽ | M72: 110,495.07 ₽ | N72: 5,849,401.04 ₽
A73: 47 | B73: 14.50% | C73: 7,409.16 ₽ | D73: 68,750.70 ₽ | E73: 76,159.87 ₽ | F73: 5,682,304.21 ₽ | I73: 47 | J73: 22.00% | K73: 3,256.05 ₽ | L73: 107,239.02 ₽ | M73: 110,495.07 ₽ | N73: 5,846,145.00 ₽
A74: 48 | B74: 14.50% | C74: 7,498.69 ₽ | D74: 68,661.18 ₽ | E74: 76,159.87 ₽ | F74: 5,674,805.52 ₽ | I74: 48 | J74: 22.00% | K74: 3,315.74 ₽ | L74: 107,179.32 ₽ | M74: 110,495.07 ₽ | N74: 5,842,829.25 ₽
A75: 49 | B75: 22.00% | C75: 3,279.43 ₽ | D75: 104,038.10 ₽ | E75: 107,317.53 ₽ | F75: 5,671,526.09 ₽ | I75: 49 | J75: 22.00% | K75: 3,376.53 ₽ | L75: 107,118.54 ₽ | M75: 110,495.07 ₽ | N75: 5,839,452.72 ₽
A76: 50 | B76: 22.00% | C76: 3,339.55 ₽ | D76: 103,977.98 ₽ | E76: 107,317.53 ₽ | F76: 5,668,186.54 ₽ | I76: 50 | J76: 22.00% | K76: 3,438.43 ₽ | L76: 107,056.63 ₽ | M76: 110,495.07 ₽ | N76: 5,836,014.29 ₽
A77: 51 | B77: 22.00% | C77: 3,400.78 ₽ | D77: 103,916.75 ₽ | E77: 107,317.53 ₽ | F77: 5,664,785.76 ₽ | I77: 51 | J77: 22.00% | K77: 3,501.47 ₽ | L77: 106,993.60 ₽ | M77: 110,495.07 ₽ | N77: 5,832,512.82 ₽
A78: 52 | B78: 22.00% | C78: 3,463.13 ₽ | D78: 103,854.41 ₽ | E78: 107,317.53 ₽ | F78: 5,661,322.63 ₽ | I78: 52 | J78: 22.00% | K78: 3,565.66 ₽ | L78: 106,929.40 ₽ | M78: 110,495.07 ₽ | N78: 5,828,947.16 ₽
A79: 53 | B79: 22.00% | C79: 3,526.62 ₽ | D79: 103,790.91 ₽ | E79: 107,317.53 ₽ | F79: 5,657,796.02 ₽ | I79: 53 | J79: 22.00% | K79: 3,631.03 ₽ | L79: 106,864.03 ₽ | M79: 110,495.07 ₽ | N79: 5,825,316.12 ₽
A80: 54 | B80: 22.00% | C80: 3,591.27 ₽ | D80: 103,726.26 ₽ | E80: 107,317.53 ₽ | F80: 5,654,204.75 ₽ | I80: 54 | J80: 22.00% | K80: 3,697.60 ₽ | L80: 106,797.46 ₽ | M80: 110,495.07 ₽ | N80: 5,821,618.52 ₽
A81: 55 | B81: 22.00% | C81: 3,657.11 ₽ | D81: 103,660.42 ₽ | E81: 107,317.53 ₽ | F81: 5,650,547.63 ₽ | I81: 55 | J81: 22.00% | K81: 3,765.39 ₽ | L81: 106,729.67 ₽ | M81: 110,495.07 ₽ | N81: 5,817,853.12 ₽
A82: 56 | B82: 22.00% | C82: 3,724.16 ₽ | D82: 103,593.37 ₽ | E82: 107,317.53 ₽ | F82: 5,646,823.48 ₽ | I82: 56 | J82: 22.00% | K82: 3,834.43 ₽ | L82: 106,660.64 ₽ | M82: 110,495.07 ₽ | N82: 5,814,018.70 ₽
A83: 57 | B83: 22.00% | C83: 3,792.43 ₽ | D83: 103,525.10 ₽ | E83: 107,317.53 ₽ | F83: 5,643,031.04 ₽ | I83: 57 | J83: 22.00% | K83: 3,904.72 ₽ | L83: 106,590.34 ₽ | M83: 110,495.07 ₽ | N83: 5,810,113.98 ₽
A84: 58 | B84: 22.00% | C84: 3,861.96 ₽ | D84: 103,455.57 ₽ | E84: 107,317.53 ₽ | F84: 5,639,169.08 ₽ | I84: 58 | J84: 22.00% | K84: 3,976.31 ₽ | L84: 106,518.76 ₽ | M84: 110,495.07 ₽ | N84: 5,806,137.67 ₽
A85: 59 | B85: 22.00% | C85: 3,932.76 ₽ | D85: 103,384.77 ₽ | E85: 107,317.53 ₽ | F85: 5,635,236.32 ₽ | I85: 59 | J85: 22.00% | K85: 4,049.21 ₽ | L85: 106,445.86 ₽ | M85: 110,495.07 ₽ | N85: 5,802,088.46 ₽
A86: 60 | B86: 22.00% | C86: 4,004.87 ₽ | D86: 103,312.67 ₽ | E86: 107,317.53 ₽ | F86: 5,631,231.45 ₽ | I86: 60 | J86: 22.00% | K86: 4,123.44 ₽ | L86: 106,371.62 ₽ | M86: 110,495.07 ₽ | N86: 5,797,965.01 ₽
A87: 61 | B87: 22.00% | C87: 4,078.29 ₽ | D87: 103,239.24 ₽ | E87: 107,317.53 ₽ | F87: 5,627,153.16 ₽ | I87: 61 | J87: 22.00% | K87: 4,199.04 ₽ | L87: 106,296.03 ₽ | M87: 110,495.07 ₽ | N87: 5,793,765.97 ₽
A88: 62 | B88: 22.00% | C88: 4,153.06 ₽ | D88: 103,164.47 ₽ | E88: 107,317.53 ₽ | F88: 5,623,000.10 ₽ | I88: 62 | J88: 22.00% | K88: 4,276.02 ₽ | L88: 106,219.04 ₽ | M88: 110,495.07 ₽ | N88: 5,789,489.95 ₽
A89: 63 | B89: 22.00% | C89: 4,229.20 ₽ | D89: 103,088.34 ₽ | E89: 107,317.53 ₽ | F89: 5,618,770.91 ₽ | I89: 63 | J89: 22.00% | K89: 4,354.42 ₽ | L89: 106,140.65 ₽ | M89: 110,495.07 ₽ | N89: 5,785,135.53 ₽
A90: 64 | B90: 22.00% | C90: 4,306.73 ₽ | D90: 103,010.80 ₽ | E90: 107,317.53 ₽ | F90: 5,614,464.18 ₽ | I90: 64 | J90: 22.00% | K90: 4,434.25 ₽ | L90: 106,060.82 ₽ | M90: 110,495.07 ₽ | N90: 5,780,701.28 ₽
A91: 65 | B91: =IF(A91<=($G$13*12),$G$15,IF(A91<=($G$7*12),$G$8,"")) -> 22.00% | C91: 4,385.69 ₽ | D91: =IFERROR(ABS(IF(A91<=($G$13*12),IPMT($B91/12,A91,$G$7*12,$F$26),IPMT($G$8/12,(A91-($G$13*12)),($G$7-$G$13)*12,INDEX($F$27:$F$386,MATCH($G$13*12,$A$27:$A$386,0),1)))),"") -> 102,931.84 ₽ | E91: =IF(B91="","",ABS(IF(A91<=($G$13*12),PMT($B91/12,$G$7*12,$F$26),PMT($G$8/12,($G$7-$G$13)*12,INDEX($F$27:$F$386,MATCH($G$13*12,$A$27:$A$386,0),1))))) -> 107,317.53 ₽ | F91: 5,610,078.49 ₽ | I91: 65 | J91: =IF(I91<=($G$7*12),$G$8,"") -> 22.00% | K91: 4,515.54 ₽ | L91: =IFERROR(ABS(IPMT($G$8/12,I91,$G$7*12,$N$26)),"") -> 105,979.52 ₽ | M91: =IF(J91="","",ABS(PMT($G$8/12,$G$7*12,$G$14))) -> 110,495.07 ₽ | N91: 5,776,185.74 ₽
A92: 66 | B92: 22.00% | C92: =IFERROR(ABS(IF(A92<=($G$13*12),PPMT($B92/12,A92,$G$7*12,$F$26),PPMT($G$8/12,(A92-($G$13*12)),($G$7-$G$13)*12,INDEX($F$27:$F$386,MATCH($G$13*12,$A$27:$A$386,0),1)))),"") -> 4,466.09 ₽ | D92: 102,851.44 ₽ | E92: 107,317.53 ₽ | F92: =IFERROR(F91-C92,"") -> 5,605,612.40 ₽ | I92: 66 | J92: 22.00% | K92: =IFERROR(ABS(PPMT($G$8/12,I92,$G$7*12,$N$26)),"") -> 4,598.33 ₽ | L92: 105,896.74 ₽ | M92: 110,495.07 ₽ | N92: =IFERROR(N91-K92,"") -> 5,771,587.41 ₽
A93: 67 | B93: 22.00% | C93: 4,547.97 ₽ | D93: 102,769.56 ₽ | E93: 107,317.53 ₽ | F93: 5,601,064.43 ₽ | I93: 67 | J93: 22.00% | K93: 4,682.63 ₽ | L93: 105,812.44 ₽ | M93: 110,495.07 ₽ | N93: 5,766,904.78 ₽
A94: 68 | B94: 22.00% | C94: 4,631.35 ₽ | D94: 102,686.18 ₽ | E94: 107,317.53 ₽ | F94: 5,596,433.08 ₽ | I94: 68 | J94: 22.00% | K94: 4,768.48 ₽ | L94: 105,726.59 ₽ | M94: 110,495.07 ₽ | N94: 5,762,136.30 ₽
A95: 69 | B95: 22.00% | C95: 4,716.26 ₽ | D95: 102,601.27 ₽ | E95: 107,317.53 ₽ | F95: 5,591,716.82 ₽ | I95: 69 | J95: 22.00% | K95: 4,855.90 ₽ | L95: 105,639.17 ₽ | M95: 110,495.07 ₽ | N95: 5,757,280.40 ₽
A96: 70 | B96: 22.00% | C96: 4,802.72 ₽ | D96: 102,514.81 ₽ | E96: 107,317.53 ₽ | F96: 5,586,914.09 ₽ | I96: 70 | J96: 22.00% | K96: 4,944.93 ₽ | L96: 105,550.14 ₽ | M96: 110,495.07 ₽ | N96: 5,752,335.48 ₽
A97: 71 | B97: 22.00% | C97: 4,890.77 ₽ | D97: 102,426.76 ₽ | E97: 107,317.53 ₽ | F97: 5,582,023.32 ₽ | I97: 71 | J97: 22.00% | K97: 5,035.58 ₽ | L97: 105,459.48 ₽ | M97: 110,495.07 ₽ | N97: 5,747,299.89 ₽
A98: 72 | B98: 22.00% | C98: 4,980.44 ₽ | D98: 102,337.09 ₽ | E98: 107,317.53 ₽ | F98: 5,577,042.88 ₽ | I98: 72 | J98: 22.00% | K98: 5,127.90 ₽ | L98: 105,367.16 ₽ | M98: 110,495.07 ₽ | N98: 5,742,171.99 ₽
A99: 73 | B99: 22.00% | C99: 5,071.75 ₽ | D99: 102,245.79 ₽ | E99: 107,317.53 ₽ | F99: 5,571,971.14 ₽ | I99: 73 | J99: 22.00% | K99: 5,221.91 ₽ | L99: 105,273.15 ₽ | M99: 110,495.07 ₽ | N99: 5,736,950.08 ₽
A100: 74 | B100: 22.00% | C100: 5,164.73 ₽ | D100: 102,152.80 ₽ | E100: 107,317.53 ₽ | F100: 5,566,806.41 ₽ | I100: 74 | J100: 22.00% | K100: 5,317.65 ₽ | L100: 105,177.42 ₽ | M100: 110,495.07 ₽ | N100: 5,731,632.43 ₽
A101: 75 | B101: 22.00% | C101: 5,259.41 ₽ | D101: 102,058.12 ₽ | E101: 107,317.53 ₽ | F101: 5,561,547.00 ₽ | I101: 75 | J101: 22.00% | K101: 5,415.14 ₽ | L101: 105,079.93 ₽ | M101: 110,495.07 ₽ | N101: 5,726,217.29 ₽
A102: 76 | B102: 22.00% | C102: 5,355.84 ₽ | D102: 101,961.69 ₽ | E102: 107,317.53 ₽ | F102: 5,556,191.16 ₽ | I102: 76 | J102: 22.00% | K102: 5,514.42 ₽ | L102: 104,980.65 ₽ | M102: 110,495.07 ₽ | N102: 5,720,702.88 ₽
A103: 77 | B103: 22.00% | C103: 5,454.03 ₽ | D103: 101,863.50 ₽ | E103: 107,317.53 ₽ | F103: 5,550,737.14 ₽ | I103: 77 | J103: 22.00% | K103: 5,615.51 ₽ | L103: 104,879.55 ₽ | M103: 110,495.07 ₽ | N103: 5,715,087.36 ₽
A104: 78 | B104: 22.00% | C104: 5,554.02 ₽ | D104: 101,763.51 ₽ | E104: 107,317.53 ₽ | F104: 5,545,183.12 ₽ | I104: 78 | J104: 22.00% | K104: 5,718.46 ₽ | L104: 104,776.60 ₽ | M104: 110,495.07 ₽ | N104: 5,709,368.90 ₽
A105: 79 | B105: 22.00% | C105: 5,655.84 ₽ | D105: 101,661.69 ₽ | E105: 107,317.53 ₽ | F105: 5,539,527.28 ₽ | I105: 79 | J105: 22.00% | K105: 5,823.30 ₽ | L105: 104,671.76 ₽ | M105: 110,495.07 ₽ | N105: 5,703,545.60 ₽
A106: 80 | B106: 22.00% | C106: 5,759.53 ₽ | D106: 101,558.00 ₽ | E106: 107,317.53 ₽ | F106: 5,533,767.75 ₽ | I106: 80 | J106: 22.00% | K106: 5,930.06 ₽ | L106: 104,565.00 ₽ | M106: 110,495.07 ₽ | N106: 5,697,615.53 ₽
A107: 81 | B107: 22.00% | C107: 5,865.12 ₽ | D107: 101,452.41 ₽ | E107: 107,317.53 ₽ | F107: 5,527,902.62 ₽ | I107: 81 | J107: 22.00% | K107: 6,038.78 ₽ | L107: 104,456.28 ₽ | M107: 110,495.07 ₽ | N107: 5,691,576.75 ₽
A108: 82 | B108: 22.00% | C108: 5,972.65 ₽ | D108: 101,344.88 ₽ | E108: 107,317.53 ₽ | F108: 5,521,929.97 ₽ | I108: 82 | J108: 22.00% | K108: 6,149.49 ₽ | L108: 104,345.57 ₽ | M108: 110,495.07 ₽ | N108: 5,685,427.26 ₽
A109: 83 | B109: 22.00% | C109: 6,082.15 ₽ | D109: 101,235.38 ₽ | E109: 107,317.53 ₽ | F109: 5,515,847.83 ₽ | I109: 83 | J109: 22.00% | K109: 6,262.23 ₽ | L109: 104,232.83 ₽ | M109: 110,495.07 ₽ | N109: 5,679,165.03 ₽
A110: 84 | B110: 22.00% | C110: 6,193.65 ₽ | D110: 101,123.88 ₽ | E110: 107,317.53 ₽ | F110: 5,509,654.17 ₽ | I110: 84 | J110: 22.00% | K110: 6,377.04 ₽ | L110: 104,118.03 ₽ | M110: 110,495.07 ₽ | N110: 5,672,787.99 ₽
A111: 85 | B111: 22.00% | C111: 6,307.20 ₽ | D111: 101,010.33 ₽ | E111: 107,317.53 ₽ | F111: 5,503,346.97 ₽ | I111: 85 | J111: 22.00% | K111: 6,493.95 ₽ | L111: 104,001.11 ₽ | M111: 110,495.07 ₽ | N111: 5,666,294.03 ₽
A112: 86 | B112: 22.00% | C112: 6,422.84 ₽ | D112: 100,894.69 ₽ | E112: 107,317.53 ₽ | F112: 5,496,924.13 ₽ | I112: 86 | J112: 22.00% | K112: 6,613.01 ₽ | L112: 103,882.06 ₽ | M112: 110,495.07 ₽ | N112: 5,659,681.02 ₽
A113: 87 | B113: 22.00% | C113: 6,540.59 ₽ | D113: 100,776.94 ₽ | E113: 107,317.53 ₽ | F113: 5,490,383.54 ₽ | I113: 87 | J113: 22.00% | K113: 6,734.25 ₽ | L113: 103,760.82 ₽ | M113: 110,495.07 ₽ | N113: 5,652,946.78 ₽
A114: 88 | B114: 22.00% | C114: 6,660.50 ₽ | D114: 100,657.03 ₽ | E114: 107,317.53 ₽ | F114: 5,483,723.04 ₽ | I114: 88 | J114: 22.00% | K114: 6,857.71 ₽ | L114: 103,637.36 ₽ | M114: 110,495.07 ₽ | N114: 5,646,089.07 ₽
A115: 89 | B115: 22.00% | C115: 6,782.61 ₽ | D115: 100,534.92 ₽ | E115: 107,317.53 ₽ | F115: 5,476,940.43 ₽ | I115: 89 | J115: 22.00% | K115: 6,983.43 ₽ | L115: 103,511.63 ₽ | M115: 110,495.07 ₽ | N115: 5,639,105.63 ₽
A116: 90 | B116: 22.00% | C116: 6,906.96 ₽ | D116: 100,410.57 ₽ | E116: 107,317.53 ₽ | F116: 5,470,033.48 ₽ | I116: 90 | J116: 22.00% | K116: 7,111.46 ₽ | L116: 103,383.60 ₽ | M116: 110,495.07 ₽ | N116: 5,631,994.17 ₽
A117: 91 | B117: 22.00% | C117: 7,033.58 ₽ | D117: 100,283.95 ₽ | E117: 107,317.53 ₽ | F117: 5,462,999.89 ₽ | I117: 91 | J117: 22.00% | K117: 7,241.84 ₽ | L117: 103,253.23 ₽ | M117: 110,495.07 ₽ | N117: 5,624,752.33 ₽
A118: 92 | B118: 22.00% | C118: 7,162.53 ₽ | D118: 100,155.00 ₽ | E118: 107,317.53 ₽ | F118: 5,455,837.36 ₽ | I118: 92 | J118: 22.00% | K118: 7,374.61 ₽ | L118: 103,120.46 ₽ | M118: 110,495.07 ₽ | N118: 5,617,377.73 ₽
A119: 93 | B119: 22.00% | C119: 7,293.85 ₽ | D119: 100,023.68 ₽ | E119: 107,317.53 ₽ | F119: 5,448,543.51 ₽ | I119: 93 | J119: 22.00% | K119: 7,509.81 ₽ | L119: 102,985.26 ₽ | M119: 110,495.07 ₽ | N119: 5,609,867.92 ₽
A120: 94 | B120: 22.00% | C120: 7,427.57 ₽ | D120: 99,889.96 ₽ | E120: 107,317.53 ₽ | F120: 5,441,115.94 ₽ | I120: 94 | J120: 22.00% | K120: 7,647.49 ₽ | L120: 102,847.58 ₽ | M120: 110,495.07 ₽ | N120: 5,602,220.43 ₽
A121: 95 | B121: 22.00% | C121: 7,563.74 ₽ | D121: 99,753.79 ₽ | E121: 107,317.53 ₽ | F121: 5,433,552.21 ₽ | I121: 95 | J121: 22.00% | K121: 7,787.69 ₽ | L121: 102,707.37 ₽ | M121: 110,495.07 ₽ | N121: 5,594,432.74 ₽
A122: 96 | B122: 22.00% | C122: 7,702.41 ₽ | D122: 99,615.12 ₽ | E122: 107,317.53 ₽ | F122: 5,425,849.80 ₽ | I122: 96 | J122: 22.00% | K122: 7,930.47 ₽ | L122: 102,564.60 ₽ | M122: 110,495.07 ₽ | N122: 5,586,502.27 ₽
A123: 97 | B123: 22.00% | C123: 7,843.62 ₽ | D123: 99,473.91 ₽ | E123: 107,317.53 ₽ | F123: 5,418,006.18 ₽ | I123: 97 | J123: 22.00% | K123: 8,075.86 ₽ | L123: 102,419.21 ₽ | M123: 110,495.07 ₽ | N123: 5,578,426.41 ₽
A124: 98 | B124: 22.00% | C124: 7,987.42 ₽ | D124: 99,330.11 ₽ | E124: 107,317.53 ₽ | F124: 5,410,018.76 ₽ | I124: 98 | J124: 22.00% | K124: 8,223.92 ₽ | L124: 102,271.15 ₽ | M124: 110,495.07 ₽ | N124: 5,570,202.50 ₽
A125: 99 | B125: 22.00% | C125: 8,133.85 ₽ | D125: 99,183.68 ₽ | E125: 107,317.53 ₽ | F125: 5,401,884.91 ₽ | I125: 99 | J125: 22.00% | K125: 8,374.69 ₽ | L125: 102,120.38 ₽ | M125: 110,495.07 ₽ | N125: 5,561,827.81 ₽
A126: 100 | B126: 22.00% | C126: 8,282.97 ₽ | D126: 99,034.56 ₽ | E126: 107,317.53 ₽ | F126: 5,393,601.93 ₽ | I126: 100 | J126: 22.00% | K126: 8,528.22 ₽ | L126: 101,966.84 ₽ | M126: 110,495.07 ₽ | N126: 5,553,299.59 ₽
A127: 101 | B127: 22.00% | C127: 8,434.83 ₽ | D127: 98,882.70 ₽ | E127: 107,317.53 ₽ | F127: 5,385,167.10 ₽ | I127: 101 | J127: 22.00% | K127: 8,684.57 ₽ | L127: 101,810.49 ₽ | M127: 110,495.07 ₽ | N127: 5,544,615.02 ₽
A128: 102 | B128: 22.00% | C128: 8,589.47 ₽ | D128: 98,728.06 ₽ | E128: 107,317.53 ₽ | F128: 5,376,577.64 ₽ | I128: 102 | J128: 22.00% | K128: 8,843.79 ₽ | L128: 101,651.28 ₽ | M128: 110,495.07 ₽ | N128: 5,535,771.22 ₽
A129: 103 | B129: 22.00% | C129: 8,746.94 ₽ | D129: 98,570.59 ₽ | E129: 107,317.53 ₽ | F129: 5,367,830.69 ₽ | I129: 103 | J129: 22.00% | K129: 9,005.93 ₽ | L129: 101,489.14 ₽ | M129: 110,495.07 ₽ | N129: 5,526,765.30 ₽
A130: 104 | B130: 22.00% | C130: 8,907.30 ₽ | D130: 98,410.23 ₽ | E130: 107,317.53 ₽ | F130: 5,358,923.39 ₽ | I130: 104 | J130: 22.00% | K130: 9,171.04 ₽ | L130: 101,324.03 ₽ | M130: 110,495.07 ₽ | N130: 5,517,594.26 ₽
A131: 105 | B131: 22.00% | C131: 9,070.60 ₽ | D131: 98,246.93 ₽ | E131: 107,317.53 ₽ | F131: 5,349,852.79 ₽ | I131: 105 | J131: 22.00% | K131: 9,339.17 ₽ | L131: 101,155.89 ₽ | M131: 110,495.07 ₽ | N131: 5,508,255.09 ₽
A132: 106 | B132: 22.00% | C132: 9,236.90 ₽ | D132: 98,080.63 ₽ | E132: 107,317.53 ₽ | F132: 5,340,615.89 ₽ | I132: 106 | J132: 22.00% | K132: 9,510.39 ₽ | L132: 100,984.68 ₽ | M132: 110,495.07 ₽ | N132: 5,498,744.70 ₽
A133: 107 | B133: 22.00% | C133: 9,406.24 ₽ | D133: 97,911.29 ₽ | E133: 107,317.53 ₽ | F133: 5,331,209.65 ₽ | I133: 107 | J133: 22.00% | K133: 9,684.75 ₽ | L133: 100,810.32 ₽ | M133: 110,495.07 ₽ | N133: 5,489,059.95 ₽
A134: 108 | B134: 22.00% | C134: 9,578.69 ₽ | D134: 97,738.84 ₽ | E134: 107,317.53 ₽ | F134: 5,321,630.97 ₽ | I134: 108 | J134: 22.00% | K134: 9,862.30 ₽ | L134: 100,632.77 ₽ | M134: 110,495.07 ₽ | N134: 5,479,197.65 ₽
A135: 109 | B135: 22.00% | C135: 9,754.30 ₽ | D135: 97,563.23 ₽ | E135: 107,317.53 ₽ | F135: 5,311,876.67 ₽ | I135: 109 | J135: 22.00% | K135: 10,043.11 ₽ | L135: 100,451.96 ₽ | M135: 110,495.07 ₽ | N135: 5,469,154.54 ₽
A136: 110 | B136: 22.00% | C136: 9,933.13 ₽ | D136: 97,384.41 ₽ | E136: 107,317.53 ₽ | F136: 5,301,943.54 ₽ | I136: 110 | J136: 22.00% | K136: 10,227.23 ₽ | L136: 100,267.83 ₽ | M136: 110,495.07 ₽ | N136: 5,458,927.31 ₽
A137: 111 | B137: 22.00% | C137: 10,115.23 ₽ | D137: 97,202.30 ₽ | E137: 107,317.53 ₽ | F137: 5,291,828.31 ₽ | I137: 111 | J137: 22.00% | K137: 10,414.73 ₽ | L137: 100,080.33 ₽ | M137: 110,495.07 ₽ | N137: 5,448,512.58 ₽
A138: 112 | B138: 22.00% | C138: 10,300.68 ₽ | D138: 97,016.85 ₽ | E138: 107,317.53 ₽ | F138: 5,281,527.63 ₽ | I138: 112 | J138: 22.00% | K138: 10,605.67 ₽ | L138: 99,889.40 ₽ | M138: 110,495.07 ₽ | N138: 5,437,906.91 ₽
A139: 113 | B139: 22.00% | C139: 10,489.52 ₽ | D139: 96,828.01 ₽ | E139: 107,317.53 ₽ | F139: 5,271,038.11 ₽ | I139: 113 | J139: 22.00% | K139: 10,800.11 ₽ | L139: 99,694.96 ₽ | M139: 110,495.07 ₽ | N139: 5,427,106.80 ₽
A140: 114 | B140: 22.00% | C140: 10,681.83 ₽ | D140: 96,635.70 ₽ | E140: 107,317.53 ₽ | F140: 5,260,356.27 ₽ | I140: 114 | J140: 22.00% | K140: 10,998.11 ₽ | L140: 99,496.96 ₽ | M140: 110,495.07 ₽ | N140: 5,416,108.70 ₽
A141: 115 | B141: 22.00% | C141: 10,877.67 ₽ | D141: 96,439.87 ₽ | E141: 107,317.53 ₽ | F141: 5,249,478.61 ₽ | I141: 115 | J141: 22.00% | K141: 11,199.74 ₽ | L141: 99,295.33 ₽ | M141: 110,495.07 ₽ | N141: 5,404,908.96 ₽
A142: 116 | B142: 22.00% | C142: 11,077.09 ₽ | D142: 96,240.44 ₽ | E142: 107,317.53 ₽ | F142: 5,238,401.52 ₽ | I142: 116 | J142: 22.00% | K142: 11,405.07 ₽ | L142: 99,090.00 ₽ | M142: 110,495.07 ₽ | N142: 5,393,503.89 ₽
A143: 117 | B143: 22.00% | C143: 11,280.17 ₽ | D143: 96,037.36 ₽ | E143: 107,317.53 ₽ | F143: 5,227,121.35 ₽ | I143: 117 | J143: 22.00% | K143: 11,614.16 ₽ | L143: 98,880.90 ₽ | M143: 110,495.07 ₽ | N143: 5,381,889.73 ₽
A144: 118 | B144: 22.00% | C144: 11,486.97 ₽ | D144: 95,830.56 ₽ | E144: 107,317.53 ₽ | F144: 5,215,634.37 ₽ | I144: 118 | J144: 22.00% | K144: 11,827.09 ₽ | L144: 98,667.98 ₽ | M144: 110,495.07 ₽ | N144: 5,370,062.64 ₽
A145: 119 | B145: 22.00% | C145: 11,697.57 ₽ | D145: 95,619.96 ₽ | E145: 107,317.53 ₽ | F145: 5,203,936.81 ₽ | I145: 119 | J145: 22.00% | K145: 12,043.92 ₽ | L145: 98,451.15 ₽ | M145: 110,495.07 ₽ | N145: 5,358,018.72 ₽
A146: 120 | B146: 22.00% | C146: 11,912.02 ₽ | D146: 95,405.51 ₽ | E146: 107,317.53 ₽ | F146: 5,192,024.78 ₽ | I146: 120 | J146: 22.00% | K146: 12,264.72 ₽ | L146: 98,230.34 ₽ | M146: 110,495.07 ₽ | N146: 5,345,754.00 ₽
A147: 121 | B147: 22.00% | C147: 12,130.41 ₽ | D147: 95,187.12 ₽ | E147: 107,317.53 ₽ | F147: 5,179,894.37 ₽ | I147: 121 | J147: 22.00% | K147: 12,489.58 ₽ | L147: 98,005.49 ₽ | M147: 110,495.07 ₽ | N147: 5,333,264.42 ₽
A148: 122 | B148: 22.00% | C148: 12,352.80 ₽ | D148: 94,964.73 ₽ | E148: 107,317.53 ₽ | F148: 5,167,541.57 ₽ | I148: 122 | J148: 22.00% | K148: 12,718.55 ₽ | L148: 97,776.51 ₽ | M148: 110,495.07 ₽ | N148: 5,320,545.87 ₽
A149: 123 | B149: 22.00% | C149: 12,579.27 ₽ | D149: 94,738.26 ₽ | E149: 107,317.53 ₽ | F149: 5,154,962.30 ₽ | I149: 123 | J149: 22.00% | K149: 12,951.73 ₽ | L149: 97,543.34 ₽ | M149: 110,495.07 ₽ | N149: 5,307,594.14 ₽
A150: 124 | B150: 22.00% | C150: 12,809.89 ₽ | D150: 94,507.64 ₽ | E150: 107,317.53 ₽ | F150: 5,142,152.41 ₽ | I150: 124 | J150: 22.00% | K150: 13,189.17 ₽ | L150: 97,305.89 ₽ | M150: 110,495.07 ₽ | N150: 5,294,404.97 ₽
A151: 125 | B151: 22.00% | C151: 13,044.74 ₽ | D151: 94,272.79 ₽ | E151: 107,317.53 ₽ | F151: 5,129,107.68 ₽ | I151: 125 | J151: 22.00% | K151: 13,430.98 ₽ | L151: 97,064.09 ₽ | M151: 110,495.07 ₽ | N151: 5,280,974.00 ₽
A152: 126 | B152: 22.00% | C152: 13,283.89 ₽ | D152: 94,033.64 ₽ | E152: 107,317.53 ₽ | F152: 5,115,823.79 ₽ | I152: 126 | J152: 22.00% | K152: 13,677.21 ₽ | L152: 96,817.86 ₽ | M152: 110,495.07 ₽ | N152: 5,267,296.79 ₽
A153: 127 | B153: 22.00% | C153: 13,527.43 ₽ | D153: 93,790.10 ₽ | E153: 107,317.53 ₽ | F153: 5,102,296.36 ₽ | I153: 127 | J153: 22.00% | K153: 13,927.96 ₽ | L153: 96,567.11 ₽ | M153: 110,495.07 ₽ | N153: 5,253,368.83 ₽
A154: 128 | B154: 22.00% | C154: 13,775.43 ₽ | D154: 93,542.10 ₽ | E154: 107,317.53 ₽ | F154: 5,088,520.93 ₽ | I154: 128 | J154: 22.00% | K154: 14,183.30 ₽ | L154: 96,311.76 ₽ | M154: 110,495.07 ₽ | N154: 5,239,185.52 ₽
A155: 129 | B155: =IF(A155<=($G$13*12),$G$15,IF(A155<=($G$7*12),$G$8,"")) -> 22.00% | C155: 14,027.98 ₽ | D155: =IFERROR(ABS(IF(A155<=($G$13*12),IPMT($B155/12,A155,$G$7*12,$F$26),IPMT($G$8/12,(A155-($G$13*12)),($G$7-$G$13)*12,INDEX($F$27:$F$386,MATCH($G$13*12,$A$27:$A$386,0),1)))),"") -> 93,289.55 ₽ | E155: =IF(B155="","",ABS(IF(A155<=($G$13*12),PMT($B155/12,$G$7*12,$F$26),PMT($G$8/12,($G$7-$G$13)*12,INDEX($F$27:$F$386,MATCH($G$13*12,$A$27:$A$386,0),1))))) -> 107,317.53 ₽ | F155: 5,074,492.94 ₽ | I155: 129 | J155: =IF(I155<=($G$7*12),$G$8,"") -> 22.00% | K155: 14,443.33 ₽ | L155: =IFERROR(ABS(IPMT($G$8/12,I155,$G$7*12,$N$26)),"") -> 96,051.73 ₽ | M155: =IF(J155="","",ABS(PMT($G$8/12,$G$7*12,$G$14))) -> 110,495.07 ₽ | N155: 5,224,742.19 ₽
A156: 130 | B156: 22.00% | C156: =IFERROR(ABS(IF(A156<=($G$13*12),PPMT($B156/12,A156,$G$7*12,$F$26),PPMT($G$8/12,(A156-($G$13*12)),($G$7-$G$13)*12,INDEX($F$27:$F$386,MATCH($G$13*12,$A$27:$A$386,0),1)))),"") -> 14,285.16 ₽ | D156: 93,032.37 ₽ | E156: 107,317.53 ₽ | F156: =IFERROR(F155-C156,"") -> 5,060,207.78 ₽ | I156: 130 | J156: 22.00% | K156: =IFERROR(ABS(PPMT($G$8/12,I156,$G$7*12,$N$26)),"") -> 14,708.13 ₽ | L156: 95,786.94 ₽ | M156: 110,495.07 ₽ | N156: =IFERROR(N155-K156,"") -> 5,210,034.07 ₽
A157: 131 | B157: 22.00% | C157: 14,547.06 ₽ | D157: 92,770.48 ₽ | E157: 107,317.53 ₽ | F157: 5,045,660.73 ₽ | I157: 131 | J157: 22.00% | K157: 14,977.77 ₽ | L157: 95,517.29 ₽ | M157: 110,495.07 ₽ | N157: 5,195,056.29 ₽
A158: 132 | B158: 22.00% | C158: 14,813.75 ₽ | D158: 92,503.78 ₽ | E158: 107,317.53 ₽ | F158: 5,030,846.98 ₽ | I158: 132 | J158: 22.00% | K158: 15,252.37 ₽ | L158: 95,242.70 ₽ | M158: 110,495.07 ₽ | N158: 5,179,803.92 ₽
A159: 133 | B159: 22.00% | C159: 15,085.34 ₽ | D159: 92,232.19 ₽ | E159: 107,317.53 ₽ | F159: 5,015,761.64 ₽ | I159: 133 | J159: 22.00% | K159: 15,531.99 ₽ | L159: 94,963.07 ₽ | M159: 110,495.07 ₽ | N159: 5,164,271.93 ₽
A160: 134 | B160: 22.00% | C160: 15,361.90 ₽ | D160: 91,955.63 ₽ | E160: 107,317.53 ₽ | F160: 5,000,399.74 ₽ | I160: 134 | J160: 22.00% | K160: 15,816.75 ₽ | L160: 94,678.32 ₽ | M160: 110,495.07 ₽ | N160: 5,148,455.18 ₽
A161: 135 | B161: 22.00% | C161: 15,643.54 ₽ | D161: 91,674.00 ₽ | E161: 107,317.53 ₽ | F161: 4,984,756.20 ₽ | I161: 135 | J161: 22.00% | K161: 16,106.72 ₽ | L161: 94,388.34 ₽ | M161: 110,495.07 ₽ | N161: 5,132,348.46 ₽
A162: 136 | B162: 22.00% | C162: 15,930.33 ₽ | D162: 91,387.20 ₽ | E162: 107,317.53 ₽ | F162: 4,968,825.87 ₽ | I162: 136 | J162: 22.00% | K162: 16,402.01 ₽ | L162: 94,093.06 ₽ | M162: 110,495.07 ₽ | N162: 5,115,946.45 ₽
A163: 137 | B163: 22.00% | C163: 16,222.39 ₽ | D163: 91,095.14 ₽ | E163: 107,317.53 ₽ | F163: 4,952,603.48 ₽ | I163: 137 | J163: 22.00% | K163: 16,702.71 ₽ | L163: 93,792.35 ₽ | M163: 110,495.07 ₽ | N163: 5,099,243.73 ₽
A164: 138 | B164: 22.00% | C164: 16,519.80 ₽ | D164: 90,797.73 ₽ | E164: 107,317.53 ₽ | F164: 4,936,083.68 ₽ | I164: 138 | J164: 22.00% | K164: 17,008.93 ₽ | L164: 93,486.14 ₽ | M164: 110,495.07 ₽ | N164: 5,082,234.80 ₽
A165: 139 | B165: 22.00% | C165: 16,822.66 ₽ | D165: 90,494.87 ₽ | E165: 107,317.53 ₽ | F165: 4,919,261.01 ₽ | I165: 139 | J165: 22.00% | K165: 17,320.76 ₽ | L165: 93,174.30 ₽ | M165: 110,495.07 ₽ | N165: 5,064,914.04 ₽
A166: 140 | B166: 22.00% | C166: 17,131.08 ₽ | D166: 90,186.45 ₽ | E166: 107,317.53 ₽ | F166: 4,902,129.93 ₽ | I166: 140 | J166: 22.00% | K166: 17,638.31 ₽ | L166: 92,856.76 ₽ | M166: 110,495.07 ₽ | N166: 5,047,275.73 ₽
A167: 141 | B167: 22.00% | C167: 17,445.15 ₽ | D167: 89,872.38 ₽ | E167: 107,317.53 ₽ | F167: 4,884,684.78 ₽ | I167: 141 | J167: 22.00% | K167: 17,961.68 ₽ | L167: 92,533.39 ₽ | M167: 110,495.07 ₽ | N167: 5,029,314.05 ₽
A168: 142 | B168: 22.00% | C168: 17,764.98 ₽ | D168: 89,552.55 ₽ | E168: 107,317.53 ₽ | F168: 4,866,919.81 ₽ | I168: 142 | J168: 22.00% | K168: 18,290.98 ₽ | L168: 92,204.09 ₽ | M168: 110,495.07 ₽ | N168: 5,011,023.08 ₽
A169: 143 | B169: 22.00% | C169: 18,090.67 ₽ | D169: 89,226.86 ₽ | E169: 107,317.53 ₽ | F169: 4,848,829.14 ₽ | I169: 143 | J169: 22.00% | K169: 18,626.31 ₽ | L169: 91,868.76 ₽ | M169: 110,495.07 ₽ | N169: 4,992,396.77 ₽
A170: 144 | B170: 22.00% | C170: 18,422.33 ₽ | D170: 88,895.20 ₽ | E170: 107,317.53 ₽ | F170: 4,830,406.81 ₽ | I170: 144 | J170: 22.00% | K170: 18,967.79 ₽ | L170: 91,527.27 ₽ | M170: 110,495.07 ₽ | N170: 4,973,428.98 ₽
A171: 145 | B171: 22.00% | C171: 18,760.07 ₽ | D171: 88,557.46 ₽ | E171: 107,317.53 ₽ | F171: 4,811,646.74 ₽ | I171: 145 | J171: 22.00% | K171: 19,315.53 ₽ | L171: 91,179.53 ₽ | M171: 110,495.07 ₽ | N171: 4,954,113.44 ₽
A172: 146 | B172: 22.00% | C172: 19,104.01 ₽ | D172: 88,213.52 ₽ | E172: 107,317.53 ₽ | F172: 4,792,542.73 ₽ | I172: 146 | J172: 22.00% | K172: 19,669.65 ₽ | L172: 90,825.41 ₽ | M172: 110,495.07 ₽ | N172: 4,934,443.79 ₽
A173: 147 | B173: 22.00% | C173: 19,454.25 ₽ | D173: 87,863.28 ₽ | E173: 107,317.53 ₽ | F173: 4,773,088.48 ₽ | I173: 147 | J173: 22.00% | K173: 20,030.26 ₽ | L173: 90,464.80 ₽ | M173: 110,495.07 ₽ | N173: 4,914,413.53 ₽
A174: 148 | B174: 22.00% | C174: 19,810.91 ₽ | D174: 87,506.62 ₽ | E174: 107,317.53 ₽ | F174: 4,753,277.57 ₽ | I174: 148 | J174: 22.00% | K174: 20,397.48 ₽ | L174: 90,097.58 ₽ | M174: 110,495.07 ₽ | N174: 4,894,016.04 ₽
A175: 149 | B175: 22.00% | C175: 20,174.11 ₽ | D175: 87,143.42 ₽ | E175: 107,317.53 ₽ | F175: 4,733,103.46 ₽ | I175: 149 | J175: 22.00% | K175: 20,771.44 ₽ | L175: 89,723.63 ₽ | M175: 110,495.07 ₽ | N175: 4,873,244.60 ₽
A176: 150 | B176: 22.00% | C176: 20,543.97 ₽ | D176: 86,773.56 ₽ | E176: 107,317.53 ₽ | F176: 4,712,559.49 ₽ | I176: 150 | J176: 22.00% | K176: 21,152.25 ₽ | L176: 89,342.82 ₽ | M176: 110,495.07 ₽ | N176: 4,852,092.35 ₽
A177: 151 | B177: 22.00% | C177: 20,920.61 ₽ | D177: 86,396.92 ₽ | E177: 107,317.53 ₽ | F177: 4,691,638.89 ₽ | I177: 151 | J177: 22.00% | K177: 21,540.04 ₽ | L177: 88,955.03 ₽ | M177: 110,495.07 ₽ | N177: 4,830,552.31 ₽
A178: 152 | B178: 22.00% | C178: 21,304.15 ₽ | D178: 86,013.38 ₽ | E178: 107,317.53 ₽ | F178: 4,670,334.74 ₽ | I178: 152 | J178: 22.00% | K178: 21,934.94 ₽ | L178: 88,560.13 ₽ | M178: 110,495.07 ₽ | N178: 4,808,617.37 ₽
A179: 153 | B179: 22.00% | C179: 21,694.73 ₽ | D179: 85,622.80 ₽ | E179: 107,317.53 ₽ | F179: 4,648,640.01 ₽ | I179: 153 | J179: 22.00% | K179: 22,337.08 ₽ | L179: 88,157.99 ₽ | M179: 110,495.07 ₽ | N179: 4,786,280.29 ₽
A180: 154 | B180: 22.00% | C180: 22,092.46 ₽ | D180: 85,225.07 ₽ | E180: 107,317.53 ₽ | F180: 4,626,547.54 ₽ | I180: 154 | J180: 22.00% | K180: 22,746.59 ₽ | L180: 87,748.47 ₽ | M180: 110,495.07 ₽ | N180: 4,763,533.70 ₽
A181: 155 | B181: 22.00% | C181: 22,497.49 ₽ | D181: 84,820.04 ₽ | E181: 107,317.53 ₽ | F181: 4,604,050.05 ₽ | I181: 155 | J181: 22.00% | K181: 23,163.62 ₽ | L181: 87,331.45 ₽ | M181: 110,495.07 ₽ | N181: 4,740,370.08 ₽
A182: 156 | B182: 22.00% | C182: 22,909.95 ₽ | D182: 84,407.58 ₽ | E182: 107,317.53 ₽ | F182: 4,581,140.10 ₽ | I182: 156 | J182: 22.00% | K182: 23,588.28 ₽ | L182: 86,906.78 ₽ | M182: 110,495.07 ₽ | N182: 4,716,781.80 ₽
A183: 157 | B183: 22.00% | C183: 23,329.96 ₽ | D183: 83,987.57 ₽ | E183: 107,317.53 ₽ | F183: 4,557,810.14 ₽ | I183: 157 | J183: 22.00% | K183: 24,020.73 ₽ | L183: 86,474.33 ₽ | M183: 110,495.07 ₽ | N183: 4,692,761.07 ₽
A184: 158 | B184: 22.00% | C184: 23,757.68 ₽ | D184: 83,559.85 ₽ | E184: 107,317.53 ₽ | F184: 4,534,052.46 ₽ | I184: 158 | J184: 22.00% | K184: 24,461.11 ₽ | L184: 86,033.95 ₽ | M184: 110,495.07 ₽ | N184: 4,668,299.96 ₽
A185: 159 | B185: 22.00% | C185: 24,193.24 ₽ | D185: 83,124.30 ₽ | E185: 107,317.53 ₽ | F185: 4,509,859.22 ₽ | I185: 159 | J185: 22.00% | K185: 24,909.57 ₽ | L185: 85,585.50 ₽ | M185: 110,495.07 ₽ | N185: 4,643,390.39 ₽
A186: 160 | B186: 22.00% | C186: 24,636.78 ₽ | D186: 82,680.75 ₽ | E186: 107,317.53 ₽ | F186: 4,485,222.45 ₽ | I186: 160 | J186: 22.00% | K186: 25,366.24 ₽ | L186: 85,128.82 ₽ | M186: 110,495.07 ₽ | N186: 4,618,024.15 ₽
A187: 161 | B187: 22.00% | C187: 25,088.45 ₽ | D187: 82,229.08 ₽ | E187: 107,317.53 ₽ | F187: 4,460,133.99 ₽ | I187: 161 | J187: 22.00% | K187: 25,831.29 ₽ | L187: 84,663.78 ₽ | M187: 110,495.07 ₽ | N187: 4,592,192.86 ₽
A188: 162 | B188: 22.00% | C188: 25,548.41 ₽ | D188: 81,769.12 ₽ | E188: 107,317.53 ₽ | F188: 4,434,585.58 ₽ | I188: 162 | J188: 22.00% | K188: 26,304.86 ₽ | L188: 84,190.20 ₽ | M188: 110,495.07 ₽ | N188: 4,565,887.99 ₽
A189: 163 | B189: 22.00% | C189: 26,016.80 ₽ | D189: 81,300.74 ₽ | E189: 107,317.53 ₽ | F189: 4,408,568.79 ₽ | I189: 163 | J189: 22.00% | K189: 26,787.12 ₽ | L189: 83,707.95 ₽ | M189: 110,495.07 ₽ | N189: 4,539,100.87 ₽
A190: 164 | B190: 22.00% | C190: 26,493.77 ₽ | D190: 80,823.76 ₽ | E190: 107,317.53 ₽ | F190: 4,382,075.02 ₽ | I190: 164 | J190: 22.00% | K190: 27,278.22 ₽ | L190: 83,216.85 ₽ | M190: 110,495.07 ₽ | N190: 4,511,822.66 ₽
A191: 165 | B191: 22.00% | C191: 26,979.49 ₽ | D191: 80,338.04 ₽ | E191: 107,317.53 ₽ | F191: 4,355,095.53 ₽ | I191: 165 | J191: 22.00% | K191: 27,778.32 ₽ | L191: 82,716.75 ₽ | M191: 110,495.07 ₽ | N191: 4,484,044.34 ₽
A192: 166 | B192: 22.00% | C192: 27,474.11 ₽ | D192: 79,843.42 ₽ | E192: 107,317.53 ₽ | F192: 4,327,621.42 ₽ | I192: 166 | J192: 22.00% | K192: 28,287.59 ₽ | L192: 82,207.48 ₽ | M192: 110,495.07 ₽ | N192: 4,455,756.75 ₽
A193: 167 | B193: 22.00% | C193: 27,977.81 ₽ | D193: 79,339.73 ₽ | E193: 107,317.53 ₽ | F193: 4,299,643.61 ₽ | I193: 167 | J193: 22.00% | K193: 28,806.19 ₽ | L193: 81,688.87 ₽ | M193: 110,495.07 ₽ | N193: 4,426,950.56 ₽
A194: 168 | B194: 22.00% | C194: 28,490.73 ₽ | D194: 78,826.80 ₽ | E194: 107,317.53 ₽ | F194: 4,271,152.88 ₽ | I194: 168 | J194: 22.00% | K194: 29,334.31 ₽ | L194: 81,160.76 ₽ | M194: 110,495.07 ₽ | N194: 4,397,616.25 ₽
A195: 169 | B195: 22.00% | C195: 29,013.06 ₽ | D195: 78,304.47 ₽ | E195: 107,317.53 ₽ | F195: 4,242,139.82 ₽ | I195: 169 | J195: 22.00% | K195: 29,872.10 ₽ | L195: 80,622.96 ₽ | M195: 110,495.07 ₽ | N195: 4,367,744.15 ₽
A196: 170 | B196: 22.00% | C196: 29,544.97 ₽ | D196: 77,772.56 ₽ | E196: 107,317.53 ₽ | F196: 4,212,594.85 ₽ | I196: 170 | J196: 22.00% | K196: 30,419.76 ₽ | L196: 80,075.31 ₽ | M196: 110,495.07 ₽ | N196: 4,337,324.40 ₽
A197: 171 | B197: 22.00% | C197: 30,086.63 ₽ | D197: 77,230.91 ₽ | E197: 107,317.53 ₽ | F197: 4,182,508.22 ₽ | I197: 171 | J197: 22.00% | K197: 30,977.45 ₽ | L197: 79,517.61 ₽ | M197: 110,495.07 ₽ | N197: 4,306,346.94 ₽
A198: 172 | B198: 22.00% | C198: 30,638.21 ₽ | D198: 76,679.32 ₽ | E198: 107,317.53 ₽ | F198: 4,151,870.01 ₽ | I198: 172 | J198: 22.00% | K198: 31,545.37 ₽ | L198: 78,949.69 ₽ | M198: 110,495.07 ₽ | N198: 4,274,801.57 ₽
A199: 173 | B199: 22.00% | C199: 31,199.91 ₽ | D199: 76,117.62 ₽ | E199: 107,317.53 ₽ | F199: 4,120,670.10 ₽ | I199: 173 | J199: 22.00% | K199: 32,123.70 ₽ | L199: 78,371.36 ₽ | M199: 110,495.07 ₽ | N199: 4,242,677.87 ₽
A200: 174 | B200: 22.00% | C200: 31,771.91 ₽ | D200: 75,545.62 ₽ | E200: 107,317.53 ₽ | F200: 4,088,898.18 ₽ | I200: 174 | J200: 22.00% | K200: 32,712.64 ₽ | L200: 77,782.43 ₽ | M200: 110,495.07 ₽ | N200: 4,209,965.23 ₽
A201: 175 | B201: 22.00% | C201: 32,354.40 ₽ | D201: 74,963.13 ₽ | E201: 107,317.53 ₽ | F201: 4,056,543.78 ₽ | I201: 175 | J201: 22.00% | K201: 33,312.37 ₽ | L201: 77,182.70 ₽ | M201: 110,495.07 ₽ | N201: 4,176,652.86 ₽
A202: 176 | B202: 22.00% | C202: 32,947.56 ₽ | D202: 74,369.97 ₽ | E202: 107,317.53 ₽ | F202: 4,023,596.22 ₽ | I202: 176 | J202: 22.00% | K202: 33,923.10 ₽ | L202: 76,571.97 ₽ | M202: 110,495.07 ₽ | N202: 4,142,729.76 ₽
A203: 177 | B203: 22.00% | C203: 33,551.60 ₽ | D203: 73,765.93 ₽ | E203: 107,317.53 ₽ | F203: 3,990,044.62 ₽ | I203: 177 | J203: 22.00% | K203: 34,545.02 ₽ | L203: 75,950.05 ₽ | M203: 110,495.07 ₽ | N203: 4,108,184.74 ₽
A204: 178 | B204: 22.00% | C204: 34,166.71 ₽ | D204: 73,150.82 ₽ | E204: 107,317.53 ₽ | F204: 3,955,877.91 ₽ | I204: 178 | J204: 22.00% | K204: 35,178.35 ₽ | L204: 75,316.72 ₽ | M204: 110,495.07 ₽ | N204: 4,073,006.40 ₽
A205: 179 | B205: 22.00% | C205: 34,793.10 ₽ | D205: 72,524.43 ₽ | E205: 107,317.53 ₽ | F205: 3,921,084.81 ₽ | I205: 179 | J205: 22.00% | K205: 35,823.28 ₽ | L205: 74,671.78 ₽ | M205: 110,495.07 ₽ | N205: 4,037,183.11 ₽
A206: 180 | B206: 22.00% | C206: 35,430.98 ₽ | D206: 71,886.55 ₽ | E206: 107,317.53 ₽ | F206: 3,885,653.83 ₽ | I206: 180 | J206: 22.00% | K206: 36,480.04 ₽ | L206: 74,015.02 ₽ | M206: 110,495.07 ₽ | N206: 4,000,703.07 ₽
... 180 more rows

Sheet Тариф (hidden)
A1: Скидка за комиссию: | B1: При сроке действия скидки:
B2: 1 | C2: 2 | D2: 3 | E2: 4 | F2: 5 | G2: =IF(КАЛЬКУЛЯТОР!$G$7="","Весь срок",КАЛЬКУЛЯТОР!$G$7) -> 20
A3: 0.50% | B3: 1.8% | C3: 2.7% | D3: 3.0% | E3: 2.8% | F3: 2.2% | G3: 1.3%
A4: 1.50% | B4: 2.6% | C4: 4.0% | D4: 4.5% | E4: 4.1% | F4: 3.3% | G4: 3.8%
A5: 2.50% | B5: 3.5% | C5: 5.4% | D5: 5.9% | E5: 5.5% | F5: 4.3% | G5: 6.3%
A6: 3.50% | B6: 4.4% | C6: 6.7% | D6: 7.3% | E6: 6.8% | F6: 5.4% | G6: 8.8%
A7: 4.50% | B7: 5.2% | C7: 8.0% | D7: 8.8% | E7: 8.1% | F7: 6.4% | G7: 11.2%
A8: 5.50% | B8: 6.1% | C8: 9.3% | D8: 10.2% | E8: 9.4% | F8: 7.4% | G8: 13.5%
A9: 6.50% | B9: 7.0% | C9: 10.6% | D9: 11.6% | E9: 10.6% | F9: 8.4% | G9: 15.8%
A10: 7.50% | B10: 7.8% | C10: 11.8% | D10: 13.0% | E10: 11.9% | F10: 9.3% | G10: 18.1%
A11: 8.50% | B11: 8.7% | C11: 13.1% | D11: 14.3% | E11: 13.2% | F11: 10.3% | G11: 20.3%
A13: Да
A14: Нет
A16: Программа кредитования | B16: Основные надбавки к базовой процентной ставке:
B17: Если Клиент не является зарплатным | C17: Если не оформлено / не продлено личное страхование | D17: Если не оформлено / не продлено страхование предмета залога | E17: Если нет гос. регистрации предмета залога в пользу Банка | F17: Если не оформлена электронная регистрация сделки
A18: ГБ, ТФ
A19: «Новостройка» | B19: +0,5% | C19: +1,0% | D19: – | E19: – | F19: –
A20: «Вторичное жилье» | B20: +0,5% | C20: +1,0% | D20: – | E20: – | F20: +0,1%
A21: «Частный дом» | B21: +0,5% | C21: +1,0% | D21: +1,0% | F21: –
A22: «Нежилые помещения»
A23: «Золото Югры» | B23: +0,5% | C23: – | D23: +1,0% | F23: –
A24: МФ
A25: =A19 -> «Новостройка» | B25: +0,5% | C25: – | D25: – | E25: – | F25: –
A26: =A20 -> «Вторичное жилье» | B26: +0,5% | C26: – | D26: – | E26: – | F26: +0,1%
A27: =A21 -> «Частный дом» | B27: +0,5% | C27: +1,0% | D27: +1,0% | F27: –
A28: =A22 -> «Нежилые помещения»
A29: =A23 -> «Золото Югры» | B29: +0,5% | C29: – | D29: +1,0% | F29: –
A30: СПбФ
A31: =A19 -> «Новостройка» | B31: +0,5% | C31: – | D31: – | E31: – | F31: –
A32: =A20 -> «Вторичное жилье» | B32: +0,5% | C32: – | D32: – | E32: – | F32: +0,1%
A33: =A21 -> «Частный дом» | B33: +0,5% | C33: +1,0% | D33: +1,0% | F33: –
A34: =A22 -> «Нежилые помещения»
A35: =A23 -> «Золото Югры» | B35: +0,5% | C35: – | D35: +1,0% | F35: –
